Cogmind - Beta 16 @@@ ROGUE MODE // 2025.10.23 @ 20:56:11 Player: FrigidRock Result: Destroyed by S-10 Pest with Light Assault Rifle Performance ------------- Evolutions (2) 1000 Regions Visited (8) 1600 Robots Destroyed (59) 295 Value Destroyed (2917) 2917 Prototype IDs (1) 20 Alien Tech Used (0) 0 Bonus (1516) 1516 TOTAL SCORE: 7348 Bonus ------- High Alert Combat Kills 91 Follower Combat Kills 25 Entered Garrisons 400 Used RIF Installer 1000 Cogmind --------- Core Integrity 0/550 Matter 173/300 Energy 94/160 System Corruption 12% Temperature Cool (37) Movement Walking (108) Location -8/Garrison Parts ------- > --- POWER (1) -------- Light Nuclear Core > --- PROPULSION (4) --- Aluminum Leg Aluminum Leg Aluminum Leg Carbon-fiber Leg (fused) > --- UTILITY (4) ------ Improved Heat Sink Large Storage Unit > --- WEAPON (2) ------- Particle Gun > --- INVENTORY (15) --- Deuterium Engine Light Nuclear Core Aluminum Leg High-capacity Matter Pod (37) Relay Coupler [Grunt] (24) Relay Coupler [Grunt] (26) Relay Coupler [Sentry] (19) Relay Coupler [Sentry] (19) Relay Coupler [Specialist] (17) Relay Coupler [Hunter] (18) Beam Rifle Heavy Assault Rifle Battle Cannon Concussive RPG (1) Peak State ------------ > --- POWER ------------ Light Fission Core > --- PROPULSION ------- Aluminum Leg Improved Aluminum Leg Carbon-fiber Leg VSS Leg > --- UTILITY ---------- Advanced Heat Sink Large Storage Unit Armor Integrity Analyzer Hardened Light Armor Plating > --- WEAPON ----------- Coil Gun Coil Gun > --- INVENTORY -------- Ion Engine Light Ion Engine Light Ion Engine Deuterium Engine Light Nuclear Core Aluminum Leg Aluminum Leg Aluminum Leg Small Storage Unit Seismic Detector Force Field Relay Coupler [Sentry] Relay Coupler [Specialist] Battle Cannon Mini Grenade Launcher [Rating: 39] Favorites ----------- Power Ion Engine Engine Ion Engine Power Core Light Fission Core Propulsion Aluminum Leg Treads Light Treads Leg Aluminum Leg Hover Unit Aerolev Unit Utility Large Storage Unit Device Seismic Detector Storage Large Storage Unit Processor Armor Integrity Analyzer Protection Hardened Light Armor Plating Weapon Coil Gun Energy Gun Beam Rifle Energy Cannon Heavy Particle Cannon Ballistic Gun Coil Gun Ballistic Cannon Bore Cannon Launcher Shock Bomb Launcher Build | -11 -10 -10 -10 -9 -8 -8 -8 -8 ------- Run | Yrd Mat Min Exi Min Mat Gar Mat Gar Slots Evolved 4 | . . . . . 4 . . . Power . | . . . . . . . . . Propulsion 2 | . . . . . 2 . . . Utility 2 | . . . . . 2 . . . Weapon . | . . . . . . . . . Parts Attached 61 | 8 2 1 . 5 7 14 4 20 Power 6 | 1 . . . . 1 1 . 3 Engine 3 | 1 . . . . 1 . . 1 Core 3 | . . . . . . 1 . 2 Reactor . | . . . . . . . . . Propulsion 24 | 2 . . . 3 3 5 . 11 Treads 2 | . . . . . . . . 2 Leg 21 | 2 . . . 3 3 5 . 8 Wheel . | . . . . . . . . . Hover 1 | . . . . . . . . 1 Flight . | . . . . . . . . . Utility 15 | 3 . . . 1 2 3 4 2 Device 8 | 2 . . . . . 3 2 1 Storage 2 | 1 . . . . 1 . . . Processor 2 | . . . . 1 . . 1 . Hackware . | . . . . . . . . . Protection 3 | . . . . . 1 . 1 1 Artifact . | . . . . . . . . . Weapon 16 | 2 2 1 . 1 1 5 . 4 Energy Gun 7 | 1 2 . . . . 2 . 2 Energy Cannon 1 | . . . . . 1 . . . Ballistic Gun 3 | 1 . . . . . 2 . . Ballistic Cannon 2 | . . 1 . 1 . . . . Launcher 3 | . . . . . . 1 . 2 Special Weapon . | . . . . . . . . . Impact Weapon . | . . . . . . . . . Slashing Weapon . | . . . . . . . . . Piercing Weapon . | . . . . . . . . . Special Melee Weapon . | . . . . . . . . . Unidentified Prototypes 1 | . . . . . . . . 1 Corrupted Parts 2 | . . . . 2 . . . . System Corruption 11 | . . . . 11 . . . . Parts Lost 21 | . . . . . . 3 1 17 Power 2 | . . . . . . . . 2 Propulsion 9 | . . . . . . 1 1 7 Utility 5 | . . . . . . 1 . 4 Weapon 5 | . . . . . . 1 . 4 Highest Loss Streak 7 | . . . . . . 2 1 7 To Critical Strikes . | . . . . . . . . . Average Backups 10 | 1 5 8 8 7 6 12 11 13 Power 2 | . 1 1 1 1 2 4 4 2 Propulsion 1 | . . . . . . 2 1 . Utility 3 | . 1 3 3 3 1 3 3 6 Weapon 2 | . 2 4 4 2 2 2 2 3 Tool/Special . | . . . . . . . . . Unused Backups 15 | . . . . 1 . . 2 12 Power 3 | . . . . . . . 2 1 Propulsion . | . . . . . . . . . Utility 9 | . . . . . . . . 9 Weapon 2 | . . . . 1 . . . 1 Tool/Special 1 | . . . . . . . . 1 Average Slot Usage (%) 92 | . 97 100 100 100 94 98 98 78 Engine 6 | . 14 14 14 14 9 6 . 1 Core 3 | . . . . . . 2 9 7 Treads 1 | . . . . . . . . 4 Leg 29 | . 28 28 28 28 34 35 35 24 Hover 1 | . . . . . . . . 4 Device 10 | . 14 14 14 1 7 10 24 6 Storage 10 | . 14 14 14 14 9 9 9 9 Processor 4 | . . . . 12 9 6 . 3 Protection 2 | . . . . . 7 9 1 1 Energy Gun 4 | . 21 26 14 1 . 1 . 3 Energy Cannon 1 | . . . . . 7 5 . . Ballistic Gun 5 | . 4 . . . . 3 17 9 Ballistic Cannon 6 | . . 1 14 26 9 4 . . Launcher 1 | . . . . . . 1 . 3 Peak Build Rating 39 | 9 12 12 12 18 27 39 35 35 Average Rating 23 | 5 10 12 12 15 25 29 32 25 On Entrance 16 | . 9 12 12 12 18 27 24 31 Avg Prop Armor Cover (%) 13 | . . . . . . . . 13 Naked Turns . | . . . . . . . . . Heaviest Build 50 | 15 17 17 17 23 50 50 46 41 Greatest Support 51 | 20 20 20 20 26 51 51 45 50 Greatest Overweight (x) 10 | 2 . . . 1 . 1 1 10 Average Overweight (x) . | . . . . . . . . 1 Largest Inventory Capacity 15 | 8 8 8 8 8 15 15 15 15 Average Capacity 12 | 6 8 8 8 8 12 15 15 15 Most Carried 15 | 2 8 8 8 8 8 15 15 15 Average Carried 10 | 1 5 8 8 7 6 12 11 13 Final Capacity 15 | 8 8 8 8 8 15 15 15 15 Final Carried 15 | 2 8 8 8 8 7 15 12 14 Class Distribution -------------------- 59% | Scavenger-Mutant 40% | Mutant Dominant Class ---------------- Mutant | -10/Materials Mutant | -10/Mines Mutant | -10/Exiles Mutant | -9/Mines Scavenger-Mutant | -8/Materials Scavenger-Mutant | -8/Garrison Scavenger-Mutant | -8/Materials Scavenger-Mutant | -8/Garrison Resources | -11 -10 -10 -10 -9 -8 -8 -8 -8 ----------- Run | Yrd Mat Min Exi Min Mat Gar Mat Gar Matter Collected 2015 | 178 . 139 . 269 122 406 277 624 Remotely . | . . . . . . . . . Salvage Created 2125 | 27 . 139 . 110 118 634 355 742 Parts 119 | 4 . 3 . 9 6 33 19 45 Haulers Intercepted 1 | . . . . . . . 1 . Recyclers Shooed 1 | . . . . . 1 . . . Parts Field Recycled . | . . . . . . . . . Retrieved Matter . | . . . . . . . . . Parts Self-Destructed . | . . . . . . . . . Prevented . | . . . . . . . . . Parts Restored . | . . . . . . . . . Kills | -11 -10 -10 -10 -9 -8 -8 -8 -8 ------- Run | Yrd Mat Min Exi Min Mat Gar Mat Gar Combat Hostiles Destroyed 54 | . . 5 . 4 3 13 5 24 Guns 24 | . . 5 . . . 3 5 11 Cannons 14 | . . . . 4 3 7 . . AOE 16 | . . . . . . 3 . 13 Classes Destroyed 12 | 1 . 2 . 1 1 2 2 3 Tunneler 1 | 1 . . . . . . . . Hauler 1 | . . . . . . . 1 . Recycler 1 | . . . . . 1 . . . Watcher 1 | . . . . . . . 1 . Swarmer 15 | . . 3 . . 3 3 . 6 Cutter 3 | . . . . . . . . 3 Grunt 20 | . . 2 . 3 . 7 2 6 Brawler 2 | . . . . . . 2 . . Duelist 1 | . . . . 1 . . . . Sentry 10 | . . . . . . 2 3 5 Hunter 2 | . . . . . . . . 2 Programmer 2 | . . . . . . . . 2 Best Kill Streak 5 | 1 . 3 . 2 3 5 2 5 Combat Bots Only 5 | . . 3 . 2 3 5 2 5 Max Kills in Single Turn 3 | 1 . 1 . 1 1 3 1 3 Gunslinging . | . . . . . . . . . Exploded 3 | . . . . . . 3 . 3 Melee . | . . . . . . . . . Uniques/NPCs Destroyed . | . . . . . . . . . Combat | -11 -10 -10 -10 -9 -8 -8 -8 -8 -------- Run | Yrd Mat Min Exi Min Mat Gar Mat Gar Hostile Shots Fired 324 | . . 29 . 12 16 56 35 176 Missed 92 | . . 6 . 5 4 22 11 44 Hits 232 | . . 23 . 7 12 34 24 132 Melee 1 | . . . . . . 1 . . Projectile 231 | . . 23 . 7 12 33 24 132 AOE 3 | . . . . . . 1 . 2 Critical Strikes 12 | . . . . . . 1 3 8 Damage Taken 3571 | . . 267 . 96 98 986 276 1848 Core 639 | . . 52 . 31 . 169 19 368 Absorbed by Shields 51 | . . . . . . . 51 . Core Remaining (%) 83 | 100 . . . 66 . . . . Volleys Fired 162 | 2 . 13 . 13 13 40 22 59 Largest 2 | 2 . 2 . 2 2 2 2 2 Hottest 140 | 70 . 112 . 89 123 140 60 101 Shots Fired 285 | 4 . 26 . 27 26 66 42 94 Gun 154 | 4 . 26 . 2 . 15 42 65 Cannon 103 | . . . . 25 26 46 . 6 Launcher 28 | . . . . . . 5 . 23 Special . | . . . . . . . . . Kinetic 161 | 2 . . . 25 13 22 42 57 Thermal 96 | 2 . 26 . 2 13 39 . 14 Explosive 18 | . . . . . . 5 . 13 Electromagnetic 10 | . . . . . . . . 10 Robot Hit Streak 14 | 3 . 9 . 5 5 9 8 14 Robot Miss Streak 5 | . . 1 . 4 2 3 2 5 Penetration Max 1 | . . . . . . 1 . 1 Secondary Targets 3 | . . 2 . . . . . 1 Max Gunslinging Chain 1 | . . 1 . . . . . 1 Shots Hit Robots 167 | 3 . 20 . 11 14 37 25 57 Core Hits 95 | 1 . 7 . 5 4 25 10 43 Critical Kills 9 | . . . . 1 2 3 1 2 Critical Parts Destroyed 9 | 1 . . . 2 3 2 . 1 Critical Strikes 23 | 2 . 1 . 5 5 5 1 4 Burn 3 | 1 . 1 . . . . . 1 Destroy 18 | 1 . . . 3 5 5 1 3 Blast 2 | . . . . 2 . . . . Melee Attacks . | . . . . . . . . . Impact . | . . . . . . . . . Slashing . | . . . . . . . . . Piercing . | . . . . . . . . . Sneak Attacks . | . . . . . . . . . Combat Hostiles . | . . . . . . . . . Follow-up Attacks . | . . . . . . . . . Damage Inflicted 4342 | 41 . 290 . 225 295 1033 571 1887 Guns 2025 | 41 . 290 . 14 . 218 571 891 Cannons 1230 | . . . . 211 295 647 . 77 Explosions 1087 | . . . . . . 168 . 919 Melee . | . . . . . . . . . Ramming . | . . . . . . . . . Kinetic 2068 | 28 . . . 211 170 288 571 800 Thermal 1231 | 13 . 290 . 14 125 577 . 212 Explosive 703 | . . . . . . 168 . 535 Electromagnetic 340 | . . . . . . . . 340 Impact . | . . . . . . . . . Slashing . | . . . . . . . . . Piercing . | . . . . . . . . . Highest Corruption 12 | . . . . 11 . 7 7 12 Average Corruption 9 | . . . . 10 . 7 7 9 Corruption Purged . | . . . . . . . . . Corruption Blocked . | . . . . . . . . . Effects 66 | . . . . 18 . 3 15 30 Message Errors 10 | . . . . 3 . . 2 5 Matter Fused 18 | . . . . 4 . . 4 10 Heat Flow Errors 10 | . . . . 3 . 2 1 4 Energy Discharges 12 | . . . . 4 . . 5 3 Parts Rejected 1 | . . . . . . . 1 . Parts Fused 1 | . . . . . . . . 1 Data Loss (minor) 3 | . . . . 2 . . 1 . Data Loss (major) 6 | . . . . 1 . 1 1 3 Misfires 3 | . . . . 1 . . . 2 Weapon Failures 2 | . . . . . . . . 2 Overload Shots . | . . . . . . . . . Overflow Damage 62 | . . . . . 11 9 . 42 Projectiles 11 | . . . . . 11 . . . Explosions 51 | . . . . . . 9 . 42 Melee . | . . . . . . . . . Knockbacks 9 | . . . . 7 2 . . . Impact . | . . . . . . . . . Kinetic 6 | . . . . 4 2 . . . Secondary 3 | . . . . 3 . . . . Self-Inflicted Damage 348 | . . . . . . 118 . 230 Shots 11 | . . . . . . 1 . 10 Rammed . | . . . . . . . . . Targets Rammed . | . . . . . . . . . Kicked . | . . . . . . . . . Crushed . | . . . . . . . . . Highest Temperature 502 | 18 . 502 . 266 378 405 253 215 Average Temperature 127 | 10 . 210 . 67 124 143 110 81 Received Heat Transfer 986 | . . 120 . 45 . 243 128 450 Effects 8 | . . 4 . . . 4 . . Shutdowns 4 | . . 2 . . . 2 . . Energy Bleed 1 | . . . . . . 1 . . Matter Decay 1 | . . 1 . . . . . . Short Circuit 1 | . . . . . . 1 . . Damage (minor) 1 | . . 1 . . . . . . Siege Activations . | . . . . . . . . . Martial Activations . | . . . . . . . . . Shielding Activations . | . . . . . . . . . Robots Disrupted . | . . . . . . . . . Combat Hostiles . | . . . . . . . . . Robots Corrupted . | . . . . . . . . . Combat Hostiles . | . . . . . . . . . Parts Fried 2 | . . . . . . . . 2 Impact Corruptions . | . . . . . . . . . Robots Melted . | . . . . . . . . . Combat Hostiles . | . . . . . . . . . Parts Melted 4 | . . 1 . . . 1 . 2 Heat Transferred 2627 | 111 . 814 . 37 185 999 . 481 Parts Sabotaged . | . . . . . . . . . Parts Stolen . | . . . . . . . . . Parts Stripped . | . . . . . . . . . Power Chain Reactions 1 | . . . . . . . . 1 Alert | -11 -10 -10 -10 -9 -8 -8 -8 -8 ------- Run | Yrd Mat Min Exi Min Mat Gar Mat Gar Maximum Alert Level 2 | . . . . . . 2 1 2 Low Security (%) 59 | 100 100 100 . 100 100 29 49 34 Level 1 20 | . . . . . . 52 50 7 Level 2 20 | . . . . . . 17 . 57 Level 3 . | . . . . . . . . . Level 4 . | . . . . . . . . . Level 5 . | . . . . . . . . . High Security . | . . . . . . . . . Max Security . | . . . . . . . . . Peak Influence 669 | 5 . 70 . 80 84 462 274 669 Initial 224 | . . . . . 24 39 224 13 Average 179 | . . 35 . 10 33 282 136 332 Influence Increases 1868 | 5 . 120 . 145 121 473 178 826 Destroy 0b10 Robot/C 1100 | . . 100 . 100 60 260 100 480 Destroy 0b10 Robot/NC 30 | 5 . . . . 5 10 10 . Destroy Leader 134 | . . 20 . 20 10 20 44 20 Allied During Kill 23 | . . . . 14 8 1 . . Successful Hack 2 | . . . . . 2 . . . Disable Machine 30 | . . . . . 30 . . . Anti-Garrison Action 250 | . . . . . . 100 . 150 Destroy Structure 164 | . . . . 11 6 67 9 71 Lose Combat Pursuer 135 | . . . . . . 15 15 105 Influence Decreases 1199 | 5 . 110 10 81 124 72 620 177 Entered New Map 317 | . . . 10 . 40 22 238 7 Time Decay 502 | 5 . 110 . 81 84 . 222 . Lost Part 210 | . . . . . . 30 10 170 Lost Ally 20 | . . . . . . 20 . . Purge Threat 150 | . . . . . . . 150 . Squads Dispatched 2 | . . . . . . . 2 . Investigation 1 | . . . . . . . 1 . Extermination . | . . . . . . . . . Reinforcement 1 | . . . . . . . 1 . Assault . | . . . . . . . . . Garrison . | . . . . . . . . . Intercept . | . . . . . . . . . Searches Triggered . | . . . . . . . . . Construction Impeded . | . . . . . . . . . Haulers Reinforced . | . . . . . . . . . Active Scanning Responses . | . . . . . . . . . Cargo Convoy Interrupts . | . . . . . . . . . Stealth | -11 -10 -10 -10 -9 -8 -8 -8 -8 --------- Run | Yrd Mat Min Exi Min Mat Gar Mat Gar Distress Signals 1 | . 1 . . . . . . . Communications Jammed . | . . . . . . . . . Distress Signals . | . . . . . . . . . Times Spotted 73 | . . 4 . 10 3 17 10 29 Peak Tracking Total 9 | . . 2 . 5 3 5 6 9 Tactical Retreats 5 | . . . . 1 . 1 1 2 Traps | -11 -10 -10 -10 -9 -8 -8 -8 -8 ------- Run | Yrd Mat Min Exi Min Mat Gar Mat Gar Traps Triggered 4 | . . . . . . 2 . 2 Indirectly . | . . . . . . . . . Trap Hack Attempts . | . . . . . . . . . Triggered . | . . . . . . . . . Disarmed . | . . . . . . . . . Reprogrammed . | . . . . . . . . . Reused . | . . . . . . . . . Traps Extracted . | . . . . . . . . . Installed . | . . . . . . . . . Triggered . | . . . . . . . . . Machines | -11 -10 -10 -10 -9 -8 -8 -8 -8 ---------- Run | Yrd Mat Min Exi Min Mat Gar Mat Gar Machines Disabled 9 | . . . . . 2 4 . 3 Max in Single Turn 2 | . . . . . 1 2 . 1 Garrison Relay 4 | . . . . . . 1 . 3 Phase Generator 1 | . . . . . . 1 . . Machines Repaired . | . . . . . . . . . Machines Dismantled . | . . . . . . . . . Machines Sabotaged . | . . . . . . . . . Overloaded Fab Kills . | . . . . . . . . . Hacking | -11 -10 -10 -10 -9 -8 -8 -8 -8 --------- Run | Yrd Mat Min Exi Min Mat Gar Mat Gar Machines Accessed 14 | . 3 . 1 . 3 1 4 2 Terminals 9 | . 3 . . . . 1 3 2 Fabricators . | . . . . . . . . . Repair Stations 1 | . . . . . 1 . . . Recycling Units . | . . . . . . . . . Scanalyzers 1 | . . . . . 1 . . . Garrison Access 2 | . . . . . 1 . 1 . Total Hacks 32 | . 7 . 4 . 7 2 10 2 Successful 10 | . . . 4 . 3 . 3 . Failed 21 | . 7 . . . 3 2 7 2 Catastrophic 8 | . 5 . . . . . 2 1 Database Lockouts 1 | . . . . . 1 . . . Manual 15 | . 7 . . . . . 8 . Terminals 20 | . 7 . . . . 2 9 2 Fabricators . | . . . . . . . . . Repair Stations 3 | . . . . . 3 . . . Recycling Units . | . . . . . . . . . Scanalyzers 3 | . . . . . 3 . . . Garrison Access 2 | . . . . . 1 . 1 . Terminal Hacks 5 | . . . 4 . . . 1 . Record 4 | . . . 4 . . . . . Unreport Threat 1 | . . . . . . . 1 . Fabricator Hacks . | . . . . . . . . . Repair Station Hacks 1 | . . . . . 1 . . . Scan Component 1 | . . . . . 1 . . . Recycling Unit Hacks . | . . . . . . . . . Scanalyzer 1 | . . . . . 1 . . . Retrieve Study 1 | . . . . . 1 . . . Garrison Access Hacks 2 | . . . . . 1 . 1 . Unlock Access 2 | . . . . . 1 . 1 . Unauthorized Hacks 1 | . . . . . . . 1 . Terminals 1 | . . . . . . . 1 . Botnet 1 | . . . . . . . 1 . Fabricators . | . . . . . . . . . Repair Stations . | . . . . . . . . . Recycling Units . | . . . . . . . . . Scanalyzers . | . . . . . . . . . Garrison Access . | . . . . . . . . . Data Cores Recovered . | . . . . . . . . . Used . | . . . . . . . . . Hacking Detections 12 | . 3 . . . 2 1 4 2 Full Trace Events 1 | . . . . . . . 1 . Feedback Events . | . . . . . . . . . Feedback Blocked . | . . . . . . . . . Robot Schematics Acquired . | . . . . . . . . . Robots Built . | . . . . . . . . . Authchips . | . . . . . . . . . Time . | . . . . . . . . . Total Robot Build Rating . | . . . . . . . . . Part Schematics Acquired . | . . . . . . . . . Parts Built . | . . . . . . . . . Authchips . | . . . . . . . . . Time . | . . . . . . . . . Total Part Build Rating . | . . . . . . . . . Part Studies Acquired 1 | . . . . . 1 . . . Parts Repaired . | . . . . . . . . . Time . | . . . . . . . . . Parts Recycled . | . . . . . . . . . Recycled Matter . | . . . . . . . . . Retrieved Matter . | . . . . . . . . . Retrieved Components . | . . . . . . . . . Parts Scanalyzed . | . . . . . . . . . Part Schematics Acquired . | . . . . . . . . . Parts Damaged . | . . . . . . . . . Bothacking | -11 -10 -10 -10 -9 -8 -8 -8 -8 ------------ Run | Yrd Mat Min Exi Min Mat Gar Mat Gar Used RIF Installer 2 | . . . . . . 2 . . Zone Cloak 1 | . . . . . . 1 . . Robots Hacked . | . . . . . . . . . Non-combat . | . . . . . . . . . Combat . | . . . . . . . . . Robot Hacks Applied . | . . . . . . . . . Relay Couplers Released 16 | . . . . . . 3 . 13 Machine Destruction 16 | . . . . . . 3 . 13 Fabnet Peak Effective % . | . . . . . . . . . Robots Rewired . | . . . . . . . . . Allies Hacked . | . . . . . . . . . Hacks Repelled . | . . . . . . . . . Allies | -11 -10 -10 -10 -9 -8 -8 -8 -8 -------- Run | Yrd Mat Min Exi Min Mat Gar Mat Gar Total Allies 3 | . . . . 3 . . . . Largest Group 3 | . . . . 3 2 2 . . Highest-Rated Group 40 | . . . . 40 32 32 . . Highest-Rated Ally 16 | . . . . 16 16 16 . . Total Orders . | . . . . . . . . . Ally Attacks 31 | . . . . 26 1 4 . . Total Damage 351 | . . . . 307 . 44 . . Kills 5 | . . . . 5 . . . . Allies Corrupted . | . . . . . . . . . Allies Melted . | . . . . . . . . . Intel | -11 -10 -10 -10 -9 -8 -8 -8 -8 ------- Run | Yrd Mat Min Exi Min Mat Gar Mat Gar Active Infowar (turns) 1939 | 25 112 228 161 72 192 531 475 143 Terrain 596 | 23 112 228 161 72 . . . . Seismic 1343 | 2 . . . . 192 531 475 143 ECM 1 | . . . . . . . 1 . Robot Analysis Total . | . . . . . . . . . Derelict Logs Recovered . | . . . . . . . . . Drone Launches . | . . . . . . . . . Drone Recoveries . | . . . . . . . . . Exploration | -11 -10 -10 -10 -9 -8 -8 -8 -8 ------------- Run | Yrd Mat Min Exi Min Mat Gar Mat Gar Turns Passed 3436 | 64 112 228 161 570 217 659 475 950 Spaces Moved 1876 | 39 87 152 135 288 138 422 205 410 Core 39 | 10 . . . . . . . 29 Treads . | . . . . . . . . . Legs 1837 | 29 87 152 135 288 138 422 205 381 Wheels . | . . . . . . . . . Hover . | . . . . . . . . . Flight . | . . . . . . . . . Fastest Speed 50 | 50 120 120 120 120 112 108 105 105 Average Speed 142 | 116 120 120 120 177 115 113 156 171 Slowest Speed 550 | 150 120 120 120 190 120 185 175 550 Overloaded Moves . | . . . . . . . . . Propulsion Burnouts . | . . . . . . . . . Robots Hopped . | . . . . . . . . . Potential Cave-ins . | . . . . . . . . . Cave-ins Triggered 1 | . . . . . . 1 . . Exploration Rate (%) 35 | 4 22 42 51 57 17 52 20 51 Regions Visited 8 Branch Regions 3 Pre-discovered Areas 2 | . . . 1 1 . . . . Known Exits Taken 2 | . . . . . 1 . 1 . Unknown Exits Taken 5 | 1 1 1 1 1 . . . . Scrap Searched 1 | . . . . 1 . . . . Spaces Dug 38 | . . . . 5 . 32 1 . Terrain Destroyed 261 | . . . . 12 4 128 14 103 Melee . | . . . . . . . . . Projectile 39 | . . . . 12 4 . 14 9 AOE 222 | . . . . . . 128 . 94 Terrain Rammed . | . . . . . . . . . Walls Destroyed . | . . . . . . . . . Machines Disabled . | . . . . . . . . . Actions | -11 -10 -10 -10 -9 -8 -8 -8 -8 --------- Run | Yrd Mat Min Exi Min Mat Gar Mat Gar Total 2363 | 50 94 171 134 327 170 537 320 560 Wait 169 | . . 5 . 11 3 39 72 39 Move 1867 | 38 86 151 134 287 137 420 204 410 Hop . | . . . . . . . . . Pick Up 38 | 1 4 . . 3 4 9 6 11 Fast Attach 33 | 8 2 1 . 2 . 7 2 11 Attach 26 | . . . . . 6 4 6 10 Detach 8 | 1 2 . . . 1 2 1 1 Swap 18 | . . . . 3 3 6 . 6 Drop 37 | . . 1 . 8 3 10 7 8 Fire 162 | 2 . 13 . 13 13 40 22 59 Melee . | . . . . . . . . . Ram . | . . . . . . . . . Kick . | . . . . . . . . . Crush . | . . . . . . . . . Escape Stasis 5 | . . . . . . . . 5 Rewire . | . . . . . . . . . Trap . | . . . . . . . . . Miscellaneous . | . . . . . . . . . Route ------- -11/Scrapyard -10/Materials -10/Mines -10/Exiles -9/Mines -8/Materials -8/Garrison -8/Materials -8/Garrison (discovered 2 exits: [*Fac x2]) History --------- Turn | Location | Event 2 | -11/Scrapyard | Met Revision 17 19 | -11/Scrapyard | Discovered new exit (range 14) 65 | -11/Scrapyard | Entered Materials 66 | -10/Materials | Met a group of wandering Federalists 162 | -10/Materials | Discovered new exit (range 11) 177 | -10/Materials | Entered Mines 313 | -10/Mines | Build established: Mutant 379 | -10/Mines | Discovered new exit (range 15) 383 | -10/Mines | A weapon hastily lodged in a ceiling crevice suddenly fell to the ground 399 | -10/Mines | Deemed a non-threat by the Exiles lab entrance 405 | -10/Mines | Entered Exiles 434 | -10/Exiles | Met 8R-AWN 455 | -10/Exiles | Met EX-HEX 492 | -10/Exiles | Met EX-BIN 509 | -10/Exiles | Met EX-DEC 517 | -10/Exiles | Learned location of Zion (-6) 551 | -10/Exiles | Discovered new exit (range 14) 566 | -10/Exiles | Entered Mines 571 | -9/Mines | Assisted by bots powering up and referring to "LRC-V3" 584 | -9/Mines | Assembled infested the area 589 | -9/Mines | Assisted by a Guerilla fighting off Assembled 639 | -9/Mines | System corruption reached 10% 861 | -9/Mines | Learned location of Storage (-9) 1108 | -9/Mines | Discovered new exit (range 10) 1136 | -9/Mines | Entered Materials 1136 | -8/Materials | Accompanied by 2 allies 1136 | -8/Materials | Evolved 4 slots: Propulsion x2, Utility x2 1157 | -8/Materials | Central database locked down 1309 | -8/Materials | Identified exit to Garrison 1353 | -8/Materials | Entered Garrison 1353 | -8/Garrison | Accompanied by 2 allies 1389 | -8/Garrison | Triggered checkpoint 1436 | -8/Garrison | Build established: Scavenger-Mutant 1450 | -8/Garrison | Installed Relay Interface Framework 1459 | -8/Garrison | Garrison Relay disabled 1669 | -8/Garrison | Phase Generator disabled 1864 | -8/Garrison | Crushed by falling debris 1963 | -8/Garrison | Triggered checkpoint 1983 | -8/Garrison | Discovered new exit (range 13) 1997 | -8/Garrison | Expanded RIF knowledge: Zone Cloak 2012 | -8/Garrison | Entered Materials 2486 | -8/Materials | Identified exit to Garrison 2487 | -8/Materials | Entered Garrison 2519 | -8/Garrison | Triggered checkpoint 2592 | -8/Garrison | Core integrity fell below 50% 2604 | -8/Garrison | Lost 3 parts (3n) 2668 | -8/Garrison | Garrison Relay disabled 2737 | -8/Garrison | Triggered checkpoint 2856 | -8/Garrison | Lost 7 parts (2p3n2u) 2885 | -8/Garrison | System corruption reached 10% 2911 | -8/Garrison | Discovered new exit (range 8) 2925 | -8/Garrison | Triggered checkpoint 2932 | -8/Garrison | Core integrity fell below 20% 3123 | -8/Garrison | Garrison Relay disabled 3259 | -8/Garrison | Discovered new exit (range 8) 3295 | -8/Garrison | Triggered checkpoint 3363 | -8/Garrison | Garrison Relay disabled 3425 | -8/Garrison | Triggered checkpoint 3437 | -8/Garrison | Destroyed by S-10 Pest with Light Assault Rifle Last Messages --------------- 03363_ Relay Coupler [NC] tumbles out of relay unit. 03363_ Relay Coupler [Duelist] tumbles out of relay unit. 03363_ Relay Coupler [NC] tumbles out of relay unit. 03363_ Slug penetrates Reinforced Barrier. 03377_ System corrupted: Heat flow error (+101). 03385_ G-47 Trooper destroyed. 03388_ Acquired 58 matter. 03403_ #WR:W / VZM 18SA